fUSD/lending_fUSD_20260507
["ID","MTS","AMOUNT","RATE_DAILY","PERIOD"]
[421773335,1778132972000,-161.83,0.00012012,2]
[421773336,1778132972000,-500.0,0.00012016,2]
[421773339,1778133027000,168.0,0.00012,3]
[421773342,1778133031000,-250.0,0.00012032,2]
[421773344,1778133031000,-150.0,0.00012044,2]
[421773343,1778133031000,-500.0,0.00012043,2]
[421773346,1778133032000,-386.0,0.00012044,2]
[421773345,1778133032000,-150.0,0.00012044,2]
[421773347,1778133032000,-429.78,0.00012044,2]
[421773348,1778133032000,-105.3812738,0.00012098,2]
[421773349,1778133032000,-44.6187262,0.00012098,2]
[421773350,1778133032000,-500.0,0.00012114,2]
[421773351,1778133032000,-208.94,0.00012203,2]
[421773352,1778133032000,-62.83495196,0.00012232,2]
[421773353,1778133032000,-932.45504804,0.00012232,2]
[421773359,1778133032000,-150.0,0.00012259,2]
[421773357,1778133032000,-300.0,0.00012258,2]
[421773355,1778133032000,-300.0,0.00012258,2]
[421773356,1778133032000,-1200.0,0.00012258,2]
[421773358,1778133032000,-150.0,0.00012259,2]
[421773360,1778133032000,-150.0,0.00012259,2]
[421773367,1778133032000,-908.70940154,0.00012482,2]
[421773361,1778133032000,-150.0,0.00012259,2]
[421773376,1778133032000,-268.95559825,0.00012558,2]
[421773374,1778133032000,-204893.32177942,0.00012558,2]
[421773369,1778133032000,-2500.0,0.00012518,2]
[421773373,1778133032000,-2369.049336,0.00012558,2]
[421773368,1778133032000,-1791.05184881,0.00012482,2]
[421773372,1778133032000,-1090.17124803,0.00012543,2]
[421773354,1778133032000,-300.0,0.00012258,2]
[421773371,1778133032000,-813.6438696,0.00012543,2]
[421773363,1778133032000,-150.0,0.00012259,2]
[421773366,1778133032000,-150.0,0.00012474,2]
[421773365,1778133032000,-150.0,0.00012474,2]
[421773364,1778133032000,-150.0,0.0001242,2]
[421773362,1778133032000,-150.0,0.00012259,2]
[421773370,1778133032000,-995.29,0.0001253,2]
[421773406,1778133038000,-500.0,0.00012557,2]
[421773407,1778133038000,-500.0,0.00012557,2]
[421773411,1778133038000,-500.0,0.00012557,2]
[421773410,1778133038000,-500.0,0.00012557,2]
[421773416,1778133038000,-500.0,0.00012557,2]
[421773413,1778133038000,-467.62042088,0.00012557,2]
[421773409,1778133038000,-500.0,0.00012557,2]
[421773412,1778133038000,-500.27807118,0.00012557,2]
[421773408,1778133038000,-500.0,0.00012557,2]
[421773414,1778133038000,-500.0,0.00012557,2]
[421773415,1778133038000,-500.0,0.00012557,2]
[421773422,1778133038000,-179.33587821,0.00012557,2]
[421773419,1778133038000,-500.0,0.00012557,2]
[421773424,1778133038000,-59.86519986,0.00012557,2]
[421773423,1778133038000,-320.66412179,0.00012557,2]
[421773420,1778133038000,-500.0,0.00012557,2]
[421773417,1778133038000,-500.0,0.00012557,2]
[421773418,1778133038000,-500.0,0.00012557,2]
[421773421,1778133038000,-500.0,0.00012557,2]
[421773434,1778133040000,-440.13480014,0.00012557,2]
[421773435,1778133040000,-500.0,0.00012557,2]
[421773444,1778133040000,-500.0,0.00012557,2]
[421773436,1778133040000,-500.0,0.00012557,2]
[421773437,1778133040000,-500.0,0.00012557,2]
[421773440,1778133040000,-500.0,0.00012557,2]
[421773438,1778133040000,-500.0,0.00012557,2]
[421773443,1778133040000,-500.0,0.00012557,2]
[421773442,1778133040000,-500.0,0.00012557,2]
[421773439,1778133040000,-500.0,0.00012557,2]
[421773441,1778133040000,-500.0,0.00012557,2]
[421773446,1778133040000,-500.0,0.00012557,2]
[421773450,1778133040000,-500.0,0.00012557,2]
[421773448,1778133040000,-500.0,0.00012557,2]
[421773445,1778133040000,-500.0,0.00012557,2]
[421773449,1778133040000,-500.0,0.00012557,2]
[421773452,1778133040000,-500.0,0.00012557,2]
[421773451,1778133040000,-500.0,0.00012557,2]
[421773454,1778133040000,-500.0,0.00012557,2]
[421773453,1778133040000,-500.0,0.00012557,2]
[421773456,1778133040000,-500.0,0.00012557,2]
[421773455,1778133040000,-500.0,0.00012557,2]
[421773457,1778133040000,-3852.76391328,0.00012558,2]
[421773459,1778133040000,-3093.41928878,0.00012558,2]
[421773447,1778133040000,-500.0,0.00012557,2]
[421773458,1778133040000,-337.05962658,0.00012558,2]
[421773467,1778133043000,-3739.69729021,0.00012558,2]
[421773468,1778133044000,-621.69315632,0.00012558,2]
[421773490,1778133046000,-9010.41470533,0.00012618,2]
[421773475,1778133046000,-62584.81036763,0.00012558,2]
[421773474,1778133046000,-1694.78645993,0.00012558,2]
[421773477,1778133046000,-500.0,0.00012617,2]
[421773476,1778133046000,-150.0,0.00012582,2]
[421773478,1778133046000,-150.0,0.00012617,2]
[421773481,1778133046000,-173.0,0.00012617,2]
[421773480,1778133046000,-173.0,0.00012617,2]
[421773479,1778133046000,-173.0,0.00012617,2]
[421773485,1778133046000,-208.82006723,0.00012617,2]
[421773483,1778133046000,-500.0,0.00012617,2]
[421773489,1778133046000,-2454.16723922,0.00012618,2]
[421773486,1778133046000,-500.0,0.00012617,2]
[421773491,1778133046000,-293.83195134,0.00012618,2]
[421773487,1778133046000,-529.65799036,0.00012617,2]
[421773482,1778133046000,-173.0,0.00012617,2]
[421773484,1778133046000,-450.61111124,0.00012617,2]
[421773488,1778133046000,-86034.10369579,0.00012618,2]
[421773498,1778133048000,152.0,0.00012521,7]
[421773500,1778133049000,152.0,0.00012566,30]
[421773499,1778133049000,152.0,0.00012524,7]
[421773501,1778133144000,2000.0,0.00011874,2]
[421773502,1778133191000,500.0,0.00011912,2]
[421773503,1778133213000,7500.01,0.00011889,2]
[421773504,1778133213000,1877.04,0.00011889,2]
[421773505,1778133368000,152.0,0.00012485,7]
[421773506,1778133383000,161.7,0.00011782,2]
[421773507,1778133536000,184.56,0.00011779,2]
[421773509,1778133649000,718.12,0.00011855,2]
[421773511,1778133652000,152.0,0.00012511,7]
[421773512,1778133695000,2552.68870015,0.000114,2]
[421773513,1778133711000,652.90249028,0.00030137,120]
[421773516,1778133754000,4276.48933521,8e-05,2]
[421773517,1778133758000,229.41196464,0.00011,2]
[421773518,1778133759000,3901.56306309,0.00011,2]
[421773519,1778133838000,262.35823852,0.000101,2]
[421773521,1778133865000,309.48193511,0.00012,2]
[421773520,1778133865000,184.75390111,0.00012,2]
[421773522,1778133868000,2000.0,0.00011725,2]
[421773523,1778133876000,2042.80203137,0.00013,15]
[421773525,1778133901000,480.0,0.00011999,2]
[421773524,1778133901000,300.0,0.00011999,2]
[421773526,1778133906000,1870.46087098,0.00012,2]
[421773532,1778133961000,150.0,0.00011999,2]
[421773533,1778133991000,500.0,0.00011999,2]
[421773534,1778133991000,41.39199119,0.00011999,2]
[421773535,1778133991000,458.60800881,0.00011999,2]
[421773537,1778133991000,500.0,0.00011999,2]
[421773536,1778133991000,500.0,0.00011999,2]
[421773538,1778133992000,500.27807118,0.00011999,2]
[421773539,1778133992000,500.0,0.00011999,2]
[421773540,1778133992000,467.62042088,0.00011999,2]
[421773549,1778133992000,500.0,0.00011999,2]
[421773541,1778133992000,500.0,0.00011999,2]
[421773543,1778133992000,500.0,0.00011999,2]
[421773544,1778133992000,500.0,0.00011999,2]
[421773545,1778133992000,500.0,0.00011999,2]
[421773547,1778133992000,500.0,0.00011999,2]
[421773546,1778133992000,500.0,0.00011999,2]
[421773548,1778133992000,500.0,0.00011999,2]
[421773542,1778133992000,500.0,0.00011999,2]
[421773550,1778133992000,500.0,0.00011999,2]
[421773551,1778133992000,500.0,0.00011999,2]
[421773560,1778133992000,500.0,0.00011999,2]
[421773559,1778133992000,500.0,0.00011999,2]
[421773558,1778133992000,500.0,0.00011999,2]
[421773555,1778133992000,73.50349913,0.00011999,2]
[421773561,1778133992000,500.0,0.00011999,2]
[421773556,1778133992000,426.49650087,0.00011999,2]
[421773554,1778133992000,500.0,0.00011999,2]
[421773553,1778133992000,500.0,0.00011999,2]
[421773552,1778133992000,500.0,0.00011999,2]
[421773557,1778133992000,500.0,0.00011999,2]
[421773562,1778133993000,500.0,0.00011999,2]
[421773563,1778133993000,500.0,0.00011999,2]
[421773564,1778133993000,500.0,0.00011999,2]
[421773565,1778133993000,500.0,0.00011999,2]
[421773566,1778133993000,500.0,0.00011999,2]
[421773569,1778133993000,500.0,0.00011999,2]
[421773568,1778133993000,500.0,0.00011999,2]
[421773567,1778133993000,500.0,0.00011999,2]
[421773570,1778133993000,500.0,0.00011999,2]
[421773571,1778133993000,500.0,0.00011999,2]
[421773578,1778133993000,500.0,0.00011999,2]
[421773572,1778133993000,500.0,0.00011999,2]
[421773575,1778133993000,500.0,0.00011999,2]
[421773574,1778133993000,500.0,0.00011999,2]
[421773577,1778133993000,468.50770119,0.00011999,2]
[421773576,1778133993000,73.51349913,0.00011999,2]
[421773579,1778133993000,500.0,0.00011999,2]
[421773580,1778133993000,500.0,0.00011999,2]
[421773581,1778133993000,500.0,0.00011999,2]
[421773582,1778133993000,500.0,0.00011999,2]
[421773583,1778133993000,500.0,0.00011999,2]
[421773573,1778133993000,500.0,0.00011999,2]
[421773584,1778133994000,500.0,0.00011999,2]
[421773586,1778134141000,150.0,0.00011999,2]
[421773585,1778134141000,300.0,0.00011999,2]
[421773594,1778134158000,780.23881643,0.00011999,2]
[421773587,1778134158000,908.82015932,0.00011999,2]
[421773588,1778134158000,908.82015932,0.00011999,2]
[421773589,1778134158000,908.82015932,0.00011999,2]
[421773590,1778134158000,908.82015932,0.00011999,2]
[421773591,1778134158000,908.82015932,0.00011999,2]
[421773592,1778134158000,908.82015932,0.00011999,2]
[421773593,1778134158000,128.58134289,0.00011999,2]
[421773596,1778134158000,908.82015932,0.00011999,2]
[421773597,1778134158000,908.82015932,0.00011999,2]
[421773598,1778134158000,908.82015932,0.00011999,2]
[421773599,1778134158000,908.82015932,0.00011999,2]
[421773600,1778134158000,908.82015932,0.00011999,2]
[421773601,1778134158000,908.82015932,0.00011999,2]
[421773603,1778134158000,908.82015932,0.00011999,2]
[421773602,1778134158000,908.82015932,0.00011999,2]
[421773604,1778134158000,908.82015932,0.00011999,2]
[421773606,1778134158000,777.25056895,0.00011999,2]
[421773605,1778134158000,131.56959037,0.00011999,2]
[421773595,1778134158000,908.82015932,0.00011999,2]
[421773616,1778134159000,908.82015932,0.00011999,2]
[421773617,1778134159000,134.55783785,0.00011999,2]
[421773615,1778134159000,908.82015932,0.00011999,2]
[421773614,1778134159000,908.82015932,0.00011999,2]
[421773613,1778134159000,908.82015932,0.00011999,2]
[421773607,1778134159000,908.82015932,0.00011999,2]
[421773610,1778134159000,908.82015932,0.00011999,2]
[421773609,1778134159000,908.82015932,0.00011999,2]
[421773608,1778134159000,908.82015932,0.00011999,2]
[421773612,1778134159000,908.82015932,0.00011999,2]
[421773618,1778134159000,774.26232147,0.00011999,2]
[421773611,1778134159000,908.82015932,0.00011999,2]
[421773620,1778134159000,908.82015932,0.00011999,2]
[421773621,1778134159000,908.82015932,0.00011999,2]
[421773622,1778134159000,908.82015932,0.00011999,2]
[421773623,1778134159000,908.82015932,0.00011999,2]
[421773625,1778134159000,908.82015932,0.00011999,2]
[421773624,1778134159000,908.82015932,0.00011999,2]
[421773619,1778134159000,908.82015932,0.00011999,2]
[421773626,1778134159000,908.82015932,0.00011999,2]
[421773627,1778134159000,908.82015932,0.00011999,2]
[421773628,1778134159000,908.82015932,0.00011999,2]
[421773630,1778134159000,771.27407399,0.00011999,2]
[421773629,1778134159000,137.54608533,0.00011999,2]
[421773631,1778134160000,908.82015932,0.00011999,2]
[421773632,1778134160000,908.82015932,0.00011999,2]
[421773634,1778134160000,908.82015932,0.00011999,2]
[421773635,1778134160000,908.82015932,0.00011999,2]
[421773633,1778134160000,908.82015932,0.00011999,2]
[421773637,1778134160000,908.82015932,0.00011999,2]
[421773639,1778134160000,908.82015932,0.00011999,2]
[421773638,1778134160000,908.82015932,0.00011999,2]
[421773640,1778134160000,908.82015932,0.00011999,2]
[421773641,1778134160000,140.53433281,0.00011999,2]
[421773636,1778134160000,908.82015932,0.00011999,2]
[421773643,1778134188000,3183.32781836,0.00011919,2]
[421773644,1778134208000,151.0,0.00011997,2]
[421773682,1778134232000,-908.82015932,0.00011999,2]
[421773683,1778134232000,-908.82015932,0.00011999,2]
[421773684,1778134232000,-908.82015932,0.00011999,2]
[421773685,1778134232000,-908.82015932,0.00011999,2]
[421773691,1778134232000,-908.82015932,0.00011999,2]
[421773689,1778134232000,-908.82015932,0.00011999,2]
[421773686,1778134232000,-908.82015932,0.00011999,2]
[421773690,1778134232000,-908.82015932,0.00011999,2]
[421773688,1778134232000,-908.82015932,0.00011999,2]
[421773692,1778134232000,-908.82015932,0.00011999,2]
[421773693,1778134232000,-908.82015932,0.00011999,2]
[421773701,1778134232000,-908.82015932,0.00011999,2]
[421773702,1778134232000,-908.82015932,0.00011999,2]
[421773681,1778134232000,-908.82015932,0.00011999,2]
[421773687,1778134232000,-908.82015932,0.00011999,2]
[421773677,1778134232000,-908.82015932,0.00011999,2]
[421773668,1778134232000,-908.82015932,0.00011999,2]
[421773672,1778134232000,-908.82015932,0.00011999,2]
[421773704,1778134232000,-908.82015932,0.00011999,2]
[421773664,1778134232000,-768.28582651,0.00011999,2]
[421773665,1778134232000,-82.84129737,0.00011999,2]
[421773666,1778134232000,-400.45,0.00011999,2]
[421773667,1778134232000,-425.52886195,0.00011999,2]
[421773670,1778134232000,-908.82015932,0.00011999,2]
[421773676,1778134232000,-908.82015932,0.00011999,2]
[421773671,1778134232000,-908.82015932,0.00011999,2]
[421773669,1778134232000,-908.82015932,0.00011999,2]
[421773674,1778134232000,-908.82015932,0.00011999,2]
[421773673,1778134232000,-908.82015932,0.00011999,2]
[421773679,1778134232000,-908.82015932,0.00011999,2]
[421773675,1778134232000,-908.82015932,0.00011999,2]
[421773678,1778134232000,-908.82015932,0.00011999,2]
[421773680,1778134232000,-908.82015932,0.00011999,2]
[421773703,1778134232000,-908.82015932,0.00011999,2]
[421773723,1778134232000,-150.0,0.00012243,2]
[421773697,1778134232000,-908.82015932,0.00011999,2]
[421773721,1778134232000,-718.12,0.00012151,2]
[421773725,1778134232000,-500.0,0.00012243,2]
[421773731,1778134232000,-500.0,0.00012243,2]
[421773736,1778134232000,-500.0,0.00012243,2]
[421773740,1778134232000,-500.0,0.00012243,2]
[421773738,1778134232000,-500.0,0.00012243,2]
[421773733,1778134232000,-500.0,0.00012243,2]
[421773744,1778134232000,-502.17716493,0.00012243,2]
[421773752,1778134232000,-2415.20303085,0.00012418,2]
[421773750,1778134232000,-727.19541631,0.00012418,2]
[421773748,1778134232000,-500.0,0.00012243,2]
[421773695,1778134232000,-908.82015932,0.00011999,2]
[421773742,1778134232000,-500.0,0.00012243,2]
[421773756,1778134232000,-685.09744477,0.00012448,2]
[421773754,1778134232000,-1249.21765937,0.00012418,2]
[421773729,1778134232000,-154.70629453,0.00012243,2]
[421773746,1778134232000,-504.83208442,0.00012243,2]
[421773719,1778134232000,-234.0170913,0.00012076,2]
[421773716,1778134232000,-4954.78607409,0.00012038,2]
[421773696,1778134232000,-908.82015932,0.00011999,2]
[421773700,1778134232000,-908.82015932,0.00011999,2]
[421773699,1778134232000,-908.82015932,0.00011999,2]
[421773698,1778134232000,-908.82015932,0.00011999,2]
[421773706,1778134232000,-908.82015932,0.00011999,2]
[421773707,1778134232000,-908.82015932,0.00011999,2]
[421773694,1778134232000,-908.82015932,0.00011999,2]
[421773710,1778134232000,-194357.54175024,0.00012,2]
[421773712,1778134232000,-313.82518987,0.00012019,2]
[421773711,1778134232000,-25093.12319448,0.00012,2]
[421773708,1778134232000,-500.0,0.00011999,2]
[421773709,1778134232000,-408.82015906,0.00011999,2]
[421773727,1778134232000,-602.57091286,0.00012243,2]
[421773705,1778134232000,-908.82015932,0.00011999,2]
[421773789,1778134233000,-151.0,0.00012511,2]
[421773784,1778134233000,-500.0,0.00012511,2]
[421773788,1778134233000,-500.0,0.00012511,2]
[421773787,1778134233000,-151.0,0.00012511,2]
[421773790,1778134233000,-500.0,0.00012511,2]
[421773796,1778134233000,-151.0,0.00012511,2]
[421773786,1778134233000,-500.0,0.00012511,2]
[421773791,1778134233000,-151.0,0.00012511,2]
[421773794,1778134233000,-500.0,0.00012511,2]
[421773798,1778134233000,-151.0,0.00012511,2]
[421773797,1778134233000,-500.0,0.00012511,2]
[421773795,1778134233000,-151.0,0.00012511,2]
[421773785,1778134233000,-151.0,0.00012511,2]
[421773783,1778134233000,-151.0,0.00012511,2]
[421773781,1778134233000,-500.0,0.00012511,2]
[421773793,1778134233000,-151.0,0.00012511,2]
[421773765,1778134233000,-187.72738034,0.00012511,2]
[421773780,1778134233000,-151.0,0.00012511,2]
[421773770,1778134233000,-151.0,0.00012511,2]
[421773767,1778134233000,-500.0,0.00012511,2]
[421773801,1778134233000,-151.0,0.00012511,2]
[421773778,1778134233000,-500.0,0.00012511,2]
[421773776,1778134233000,-151.0,0.00012511,2]
[421773772,1778134233000,-500.0,0.00012511,2]
[421773774,1778134233000,-415.49134927,0.00012511,2]
[421773761,1778134233000,-188.41820552,0.00012508,2]
[421773763,1778134233000,-200.0,0.00012511,2]
[421773758,1778134233000,-33.02255523,0.00012448,2]
[421773792,1778134233000,-151.0,0.00012511,2]
[421773799,1778134233000,-151.0,0.00012511,2]
[421773824,1778134233000,-213.54303868,0.00012517,2]
[421773800,1778134233000,-500.0,0.00012511,2]
[421773829,1778134233000,-253.46543089,0.00012518,2]
[421773832,1778134233000,-271.90586894,0.00012518,2]
[421773830,1778134233000,-1689.54017318,0.00012518,2]
[421773828,1778134233000,-56.99439593,0.00012518,2]
[421773827,1778134233000,-150.0,0.00012518,2]
[421773826,1778134233000,-584.10956166,0.00012517,2]
[421773825,1778134233000,-500.0,0.00012517,2]
[421773817,1778134233000,-412.37748508,0.00012511,2]
[421773818,1778134233000,-187.24742986,0.00012517,2]
[421773823,1778134233000,-597.11457617,0.00012517,2]
[421773820,1778134233000,-165.132,0.00012517,2]
[421773821,1778134233000,-500.0,0.00012517,2]
[421773819,1778134233000,-1340.16057014,0.00012517,2]
[421773822,1778134233000,-500.0,0.00012517,2]
[421773831,1778134233000,-5792.87836917,0.00012518,2]
[421773816,1778134233000,-811.50471421,0.00012511,2]
[421773815,1778134233000,-856.2937296,0.00012511,2]
[421773802,1778134233000,-151.0,0.00012511,2]
[421773805,1778134233000,-500.0,0.00012511,2]
[421773807,1778134233000,-500.0,0.00012511,2]
[421773806,1778134233000,-500.0,0.00012511,2]
[421773804,1778134233000,-231.27312843,0.00012511,2]
[421773803,1778134233000,-500.0,0.00012511,2]
[421773814,1778134233000,-513.0,0.00012511,2]
[421773808,1778134233000,-500.0,0.00012511,2]
[421773811,1778134233000,-500.0,0.00012511,2]
[421773810,1778134233000,-500.0,0.00012511,2]
[421773813,1778134233000,-500.0,0.00012511,2]
[421773809,1778134233000,-500.0,0.00012511,2]
[421773812,1778134233000,-500.0,0.00012511,2]
[421773837,1778134238000,-760.11851838,0.00012518,2]
[421773838,1778134238000,-1076.55582393,0.00012518,2]
[421773841,1778134238000,-867.04626424,0.00012518,2]
[421773840,1778134238000,-380.52932165,0.00012518,2]
[421773839,1778134238000,-8147.23437027,0.00012518,2]
[421773843,1778134238000,-557.49671702,0.00012518,2]
[421773845,1778134238000,-1553.52,0.00012518,2]
[421773844,1778134238000,-2027.98034925,0.00012518,2]
[421773846,1778134238000,-535.41792625,0.00012518,2]
[421773847,1778134238000,-10334.36225526,0.00012518,2]
[421773842,1778134238000,-3544.04180875,0.00012518,2]
[421774112,1778134240000,-116.82052372,0.00012518,2]
[421774110,1778134240000,-535.2614772,0.00012418,2]
[421774143,1778134240000,-205618.20843509,0.00012518,2]
[421774118,1778134240000,-300.13246974,0.00012518,2]
[421774108,1778134240000,-2458.50849633,0.00012418,2]
[421774556,1778134243000,-296.45407399,0.00012518,2]
[421774541,1778134243000,-791.92553441,0.00012518,2]
[421774486,1778134243000,-730.12479506,0.00012518,2]
[421774484,1778134243000,-405160.00000047,0.00012518,2]
[421774553,1778134243000,-15.33204481,0.00012518,2]
[421774903,1778134246000,-786.3,0.00012518,2]
[421774892,1778134246000,-1512.0,0.00012518,2]
[421774890,1778134246000,-646.0500007,0.00012518,2]
[421774887,1778134246000,-2304.0,0.00012518,2]
[421774885,1778134246000,-1041.73393293,0.00012518,2]
[421775010,1778134264000,154.09,6.053e-05,2]
[421775011,1778134265000,154.09,6.557e-05,2]
[421775012,1778134265000,154.09,7.062e-05,2]
[421775014,1778134265000,154.09,8.071e-05,2]
[421775015,1778134265000,154.09,8.575e-05,2]
[421775013,1778134265000,154.09,7.566e-05,2]
[421775019,1778134266000,154.09,0.00010593,2]
[421775018,1778134266000,154.09,0.00010088,2]
[421775017,1778134266000,154.09,9.584e-05,2]
[421775016,1778134266000,154.09,9.08e-05,2]
[421775020,1778134267000,154.09,0.00011097,2]
[421775021,1778134267000,154.09,0.00011602,2]
[421775024,1778134476000,500.0,0.00029452,120]
[421775025,1778134558000,152.0,0.00012511,7]
[421775027,1778134659000,194.59,0.00011775,2]
[421775029,1778134690000,2725.18,0.00011775,2]
[421775028,1778134690000,7805.34,0.00011775,2]
[421775030,1778134755000,2000.0,0.00011799,2]
[421775032,1778134765000,775.63,0.00011799,2]
[421775033,1778134769000,200.0,0.0001175,2]
[421775039,1778134999000,200.0,0.00011655,2]
[421775040,1778134999000,200.0,0.00011656,2]
[421775042,1778135061000,500.0,0.00011665,2]
[421775043,1778135110000,-775.63,0.00012094,2]
[421775045,1778135110000,-161.83,0.00012151,2]
[421775044,1778135110000,-154.09,0.00012106,2]
[421775047,1778135110000,-209.28798728,0.00012311,2]
[421775046,1778135110000,-160.83,0.00012153,2]
[421775048,1778135110000,-775.63,0.00012389,2]
[421775049,1778135110000,-689.62013441,0.00012411,2]
[421775050,1778135110000,-1093.06545194,0.00012415,2]
[421775053,1778135110000,-155.0,0.0001251,2]
[421775051,1778135110000,-150.0,0.00012509,2]
[421775052,1778135110000,-1200.0,0.00012509,2]
[421775054,1778135110000,-500.0,0.0001251,2]
[421775055,1778135110000,-500.0,0.0001251,2]
[421775057,1778135110000,-500.0,0.0001251,2]
[421775058,1778135110000,-225.56700372,0.0001251,2]
[421775060,1778135110000,-500.0,0.0001251,2]
[421775059,1778135110000,-500.0,0.0001251,2]
[421775061,1778135110000,-500.0,0.0001251,2]
[421775062,1778135110000,-500.0,0.0001251,2]
[421775063,1778135110000,-500.0,0.0001251,2]
[421775064,1778135110000,-500.0,0.0001251,2]
[421775065,1778135110000,-500.0,0.0001251,2]
[421775066,1778135110000,-544.82694851,0.00012511,2]
[421775068,1778135110000,-33565.26247414,0.00012511,2]
[421775067,1778135110000,-4639.36,0.00012511,2]
[421775056,1778135110000,-500.0,0.0001251,2]
[421775069,1778135122000,-50000.0,0.00012511,2]
[421775070,1778135133000,-50000.0,0.00012511,2]
[421775071,1778135146000,-50000.0,0.00012511,2]
[421775073,1778135171000,150.3,6.458e-05,2]
[421775072,1778135171000,150.3,6.028e-05,2]
[421775074,1778135171000,150.3,6.889e-05,2]
[421775079,1778135172000,150.3,9.042e-05,2]
[421775078,1778135172000,150.3,8.611e-05,2]
[421775077,1778135172000,150.3,8.18e-05,2]
[421775076,1778135172000,150.3,7.75e-05,2]
[421775075,1778135172000,150.3,7.319e-05,2]
[421775084,1778135173000,150.3,0.00010764,2]
[421775083,1778135173000,-50000.0,0.00012511,2]
[421775082,1778135173000,150.3,0.00010333,2]
[421775081,1778135173000,150.3,9.903e-05,2]
[421775080,1778135173000,150.3,9.472e-05,2]
[421775086,1778135174000,150.3,0.00011625,2]
[421775085,1778135174000,150.3,0.00011194,2]
[421775087,1778135184000,-150.3,0.00012055,2]
[421775088,1778135184000,-2555.78752586,0.00012511,2]
[421775089,1778135184000,-299.99,0.00012511,2]
[421775090,1778135184000,-9999.99,0.00012511,2]
[421775095,1778135184000,-17992.26247414,0.00012511,2]
[421775091,1778135184000,-150.99,0.00012511,2]
[421775092,1778135184000,-7636.29,0.00012511,2]
[421775094,1778135184000,-1214.4,0.00012511,2]
[421775093,1778135184000,-9999.99,0.00012511,2]
[421775102,1778135197000,-1069.4913363,0.00012516,2]
[421775103,1778135197000,-25643.41113784,0.00012517,2]
[421775101,1778135197000,-151.0,0.00012515,2]
[421775100,1778135197000,-907.72,0.00012515,2]
[421775099,1778135197000,-9999.99,0.00012515,2]
[421775097,1778135197000,-519.82,0.00012515,2]
[421775098,1778135197000,-999.99,0.00012515,2]
[421775096,1778135197000,-708.57752586,0.00012511,2]
[421775105,1778135241000,-200.0,0.00012503,2]
[421775107,1778135241000,-151.0,0.00012503,2]
[421775106,1778135241000,-151.0,0.00012503,2]
[421775109,1778135241000,-151.0,0.00012503,2]
[421775111,1778135241000,-896.0,0.00012517,2]
[421775110,1778135241000,-300.0,0.00012516,2]
[421775108,1778135241000,-151.0,0.00012503,2]
[421775112,1778135312000,818.26,0.00011991,2]
[421775113,1778135370000,167.14,0.00011929,2]
[421775133,1778135432000,-151.0,0.00012618,2]
[421775138,1778135432000,-1326.98,0.00012635,2]
[421775135,1778135432000,-999.99,0.00012635,2]
[421775136,1778135432000,-29259.68,0.00012635,2]
[421775142,1778135432000,-299.99,0.00012635,2]
[421775145,1778135432000,-500.0,0.00012673,2]
[421775143,1778135432000,-1382.0,0.00012635,5]
[421775148,1778135432000,-246.25959459,0.00012773,2]
[421775147,1778135432000,-644.17,0.00012685,2]
[421775154,1778135432000,-173.97,0.00012808,2]
[421775137,1778135432000,-9999.99,0.00012635,2]